fUST/lending_fUST_20250705
["ID","MTS","AMOUNT","RATE_DAILY","PERIOD"]
[369770951,1751722269175,-460.0,0.00021917,2]
[369770952,1751722269185,-1415.35,0.00021917,2]
[369770953,1751722269196,-1243.88,0.00021917,2]
[369770954,1751722269205,-460.0,0.00021917,2]
[369770955,1751722269216,-618.51,0.00021917,2]
[369770956,1751722269225,-3935.55,0.00021917,2]
[369770957,1751722269235,-667.64,0.00021917,2]
[369770958,1751722269246,-186.066806,0.00021917,2]
[369770959,1751722269256,-186.066806,0.00021917,2]
[369770960,1751722269267,-460.0,0.00021917,2]
[369770961,1751722269277,-507.36,0.00021917,2]
[369770962,1751722269287,-460.0,0.00021917,2]
[369770963,1751722269298,-1062.87,0.00021917,2]
[369770964,1751722269307,-3292.21,0.00021917,2]
[369770965,1751722269316,-460.0,0.00021917,2]
[369770966,1751722269328,-513.85,0.00021917,2]
[369770967,1751722269341,-460.0,0.00021917,2]
[369770968,1751722269350,-460.0,0.00021917,2]
[369770969,1751722269359,-151.0,0.00021918,2]
[369770970,1751722269369,-222.34959,0.00021918,2]
[369770971,1751722269378,-200.0,0.00021918,2]
[369770972,1751722269388,-241.973278,0.00021929,2]
[369770973,1751722269397,-476.0,0.00021968,2]
[369770974,1751722269406,-232.17415268,0.00021969,6]
[369770975,1751722269416,-150.0,0.00021973,2]
[369770976,1751722269425,-150.0,0.00021973,2]
[369770977,1751722269434,-476.0,0.00021978,2]
[369770978,1751722269443,-131781.88,0.00022,7]
[369770979,1751722269453,-12325.2,0.00022,7]
[369770980,1751722269462,-151.0,0.00022,7]
[369770981,1751722269471,-182.630505,0.00022,7]
[369770982,1751722269480,-151.0,0.00022,7]
[369770983,1751722269489,-256.774634,0.00022,7]
[369770984,1751722269500,-160.0,0.00022,7]
[369770985,1751722269509,-214.00689675,0.00022,7]
[369770986,1751722269518,-151.0,0.00022,7]
[369770987,1751722269527,-229.45793866,0.00022,2]
[369770988,1751722269536,-182.888586,0.00022,7]
[369770989,1751722269545,-151.0,0.00022,7]
[369770990,1751722269558,-151.0,0.00022,7]
[369770991,1751722269567,-848.02350475,0.00022,7]
[369770992,1751722269576,-502.979513,0.00022015,4]
[369770993,1751722269586,-241.973278,0.00022026,2]
[369770994,1751722269597,-468.0628551,0.00022052,2]
[369770995,1751722269606,-1000.0,0.00022052,2]
[369770996,1751722269615,-1000.0,0.00022052,2]
[369770997,1751722269625,-500.0,0.00022077,2]
[369770998,1751722269635,-188.6631262,0.00022077,2]
[369770999,1751722269645,-151.0,0.00022078,5]
[369771000,1751722269654,-476.0,0.00022093,2]
[369771001,1751722269663,-561.19191462,0.00022098,2]
[369771002,1751722269672,-1000.0,0.00022098,2]
[369771003,1751722269682,-1609.905523,0.000221,5]
[369771004,1751722269692,-241.973278,0.00022122,2]
[369771005,1751722269702,-2500.0,0.00022164,2]
[369771006,1751722269711,-2392.70875722,0.00022164,2]
[369771007,1751722269721,-3000.0,0.00022164,2]
[369771008,1751722269730,-1000.0,0.00022164,2]
[369771009,1751722269740,-2500.0,0.00022164,2]
[369771010,1751722269750,-232.17415268,0.00022176,6]
[369771011,1751722269759,-460.0,0.00022191,2]
[369771012,1751722269768,-460.0,0.00022191,2]
[369771013,1751722269778,-460.0,0.00022191,2]
[369771014,1751722269787,-475.96,0.00022191,2]
[369771015,1751722269797,-460.0,0.00022191,2]
[369771016,1751722269806,-520.9,0.00022191,2]
[369771017,1751722269815,-460.0,0.00022191,2]
[369771018,1751722269824,-460.0,0.00022191,2]
[369771019,1751722269834,-151.0,0.00022191,7]
[369771020,1751722269844,-460.0,0.00022191,2]
[369771021,1751722269853,-737.14,0.00022191,2]
[369771022,1751722269863,-460.0,0.00022191,2]
[369771023,1751722269872,-506.75,0.00022191,2]
[369771024,1751722269881,-460.0,0.00022191,2]
[369771025,1751722269891,-460.0,0.00022191,2]
[369771026,1751722269900,-460.0,0.00022191,2]
[369771027,1751722269910,-460.0,0.00022191,2]
[369771028,1751722269922,-460.0,0.00022191,2]
[369771029,1751722269931,-460.0,0.00022191,2]
[369771030,1751722269940,-151.0,0.00022191,7]
[369771031,1751722269950,-489.23,0.00022191,2]
[369771032,1751722269960,-300.81239313,0.00022191,2]
[369771033,1751722269969,-533.8,0.00022191,2]
[369771034,1751722269978,-1288.64,0.00022191,2]
[369771035,1751722269987,-460.0,0.00022191,2]
[369771036,1751722269996,-460.0,0.00022191,2]
[369771037,1751722270007,-460.0,0.00022191,2]
[369771038,1751722270018,-460.0,0.00022191,2]
[369771039,1751722270029,-460.0,0.00022191,2]
[369771040,1751722270040,-460.0,0.00022191,2]
[369771041,1751722270050,-151.0,0.00022191,7]
[369771042,1751722270062,-460.0,0.00022191,2]
[369771043,1751722270071,-460.0,0.00022191,2]
[369771044,1751722270082,-572.67,0.00022191,2]
[369771045,1751722270092,-460.0,0.00022191,2]
[369771046,1751722270103,-620.48,0.00022191,2]
[369771047,1751722270113,-519.51,0.00022191,2]
[369771048,1751722270123,-460.0,0.00022191,2]
[369771049,1751722270132,-460.0,0.00022191,2]
[369771050,1751722270142,-460.0,0.00022191,2]
[369771051,1751722270152,-1011.25,0.00022191,2]
[369771052,1751722270162,-155.90135499,0.00022191,2]
[369771053,1751722270172,-460.0,0.00022191,2]
[369771054,1751722270183,-460.0,0.00022191,2]
[369771055,1751722270194,-460.0,0.00022191,2]
[369771056,1751722270203,-510.1425742,0.00022191,2]
[369771057,1751722270214,-917.61,0.00022191,2]
[369771058,1751722270224,-607.25,0.00022191,2]
[369771059,1751722270235,-614.63,0.00022191,2]
[369771060,1751722270245,-460.0,0.00022191,2]
[369771061,1751722270256,-541.09,0.00022191,2]
[369771062,1751722270265,-460.0,0.00022191,2]
[369771063,1751722270277,-712.65,0.00022191,2]
[369771064,1751722270287,-460.0,0.00022191,2]
[369771065,1751722270297,-460.0,0.00022191,2]
[369771066,1751722270308,-460.0,0.00022191,2]
[369771067,1751722270318,-527.23,0.00022191,2]
[369771068,1751722270328,-739.98,0.00022191,2]
[369771069,1751722270337,-485.28,0.00022191,2]
[369771070,1751722270349,-2002.42,0.00022191,2]
[369771071,1751722270359,-569.89,0.00022191,2]
[369771072,1751722270369,-1763.37,0.00022191,2]
[369771073,1751722270379,-460.0,0.00022191,2]
[369771074,1751722270389,-3593.24,0.00022191,2]
[369771075,1751722270399,-460.0,0.00022191,2]
[369771076,1751722270409,-460.0,0.00022191,2]
[369771077,1751722270419,-817.0,0.00022191,2]
[369771078,1751722270428,-628.33,0.00022191,2]
[369771079,1751722270439,-976.22,0.00022191,2]
[369771080,1751722270449,-460.0,0.00022191,2]
[369771081,1751722270459,-151.0,0.00022191,2]
[369771082,1751722270468,-460.0,0.00022191,2]
[369771083,1751722270478,-460.0,0.00022191,2]
[369771084,1751722270488,-460.0,0.00022191,2]
[369771085,1751722270498,-1540.91,0.00022191,2]
[369771086,1751722270508,-2162.68,0.00022191,2]
[369771087,1751722270518,-532.9,0.00022191,2]
[369771088,1751722270527,-460.0,0.00022191,2]
[369771089,1751722270537,-6246.0,0.00022191,2]
[369771090,1751722270549,-460.0,0.00022191,2]
[369771091,1751722270560,-512.79,0.00022191,2]
[369771092,1751722270570,-460.0,0.00022191,2]
[369771093,1751722270580,-460.0,0.00022191,2]
[369771094,1751722270589,-460.0,0.00022191,2]
[369771095,1751722270599,-8650.73,0.00022191,2]
[369771096,1751722270609,-923.59,0.00022191,2]
[369771097,1751722270619,-460.0,0.00022191,2]
[369771098,1751722270629,-644.54,0.00022191,2]
[369771099,1751722270640,-1436.31,0.00022191,2]
[369771100,1751722270649,-515.17,0.00022191,2]
[369771101,1751722270659,-460.0,0.00022191,2]
[369771102,1751722270668,-460.0,0.00022191,2]
[369771103,1751722270678,-1988.63,0.00022191,2]
[369771104,1751722270687,-2109.23,0.00022191,2]
[369771105,1751722270697,-460.0,0.00022191,2]
[369771106,1751722270707,-460.0,0.00022191,2]
[369771107,1751722270716,-1388.11,0.00022191,2]
[369771108,1751722270726,-460.0,0.00022191,2]
[369771109,1751722270736,-460.0,0.00022191,2]
[369771110,1751722270747,-460.0,0.00022191,2]
[369771111,1751722270756,-463.27,0.00022191,2]
[369771112,1751722270765,-8374.38,0.00022191,2]
[369771113,1751722270775,-2962.19,0.00022191,2]
[369771114,1751722270785,-460.0,0.00022191,2]
[369771115,1751722270794,-1198.59,0.00022191,2]
[369771116,1751722270804,-388.95988987,0.00022191,2]
[369771117,1751722270814,-460.0,0.00022191,2]
[369771118,1751722270824,-776.97,0.00022191,2]
[369771119,1751722270834,-460.0,0.00022191,2]
[369771120,1751722270848,-460.0,0.00022191,2]
[369771121,1751722270858,-460.0,0.00022191,2]
[369771122,1751722270868,-579.55,0.00022191,2]
[369771123,1751722270878,-555.84,0.00022191,2]
[369771124,1751722270887,-2095.61,0.00022191,2]
[369771125,1751722270897,-460.0,0.00022191,2]
[369771126,1751722270907,-460.0,0.00022191,2]
[369771127,1751722270916,-460.0,0.00022191,2]
[369771128,1751722270926,-1898.56,0.00022191,2]
[369771129,1751722270935,-460.0,0.00022191,2]
[369771130,1751722270945,-893.21,0.00022191,2]
[369771131,1751722270955,-4007.99,0.00022191,2]
[369771132,1751722270965,-460.0,0.00022191,2]
[369771133,1751722270975,-5012.7,0.00022191,2]
[369771134,1751722270984,-460.0,0.00022191,2]
[369771135,1751722270994,-286.77152515,0.00022191,2]
[369771136,1751722271004,-615.94,0.00022191,2]
[369771137,1751722271014,-951.9,0.00022191,2]
[369771138,1751722271024,-460.0,0.00022191,2]
[369771139,1751722271033,-460.0,0.00022191,2]
[369771140,1751722271043,-460.0,0.00022191,2]
[369771141,1751722271053,-537.54,0.00022191,2]
[369771142,1751722271062,-6536.21,0.00022191,2]
[369771143,1751722271072,-460.0,0.00022191,2]
[369771144,1751722271082,-460.0,0.00022191,2]
[369771145,1751722271091,-1096.58,0.00022191,2]
[369771146,1751722271101,-460.0,0.00022191,2]
[369771147,1751722271111,-1375.12,0.00022191,2]
[369771148,1751722271120,-482.57,0.00022191,2]
[369771149,1751722271130,-941.2,0.00022191,2]
[369771150,1751722271139,-541.54,0.00022191,2]
[369771151,1751722271149,-1263.3,0.00022191,2]
[369771152,1751722271160,-1157.82,0.00022191,2]
[369771153,1751722271169,-460.0,0.00022191,2]
[369771154,1751722271179,-460.0,0.00022191,2]
[369771155,1751722271189,-460.0,0.00022191,2]
[369771156,1751722271199,-3019.38,0.00022191,2]
[369771157,1751722271208,-1058.72,0.00022191,2]
[369771158,1751722271217,-460.0,0.00022191,2]
[369771159,1751722271227,-512.71,0.00022191,2]
[369771160,1751722271237,-460.0,0.00022191,2]
[369771161,1751722271246,-2032.43,0.00022191,2]
[369771162,1751722271256,-585.28,0.00022191,2]
[369771163,1751722271266,-2923.56,0.00022191,2]
[369771164,1751722271275,-460.0,0.00022191,2]
[369771165,1751722271285,-652.84,0.00022191,2]
[369771166,1751722271295,-540.09,0.00022191,2]
[369771167,1751722271305,-1505.83,0.00022191,2]
[369771168,1751722271315,-460.0,0.00022191,2]
[369771169,1751722271325,-1403.04,0.00022191,2]
[369771170,1751722271334,-460.0,0.00022191,2]
[369771171,1751722271344,-641.04,0.00022191,2]
[369771172,1751722271354,-1468.55,0.00022191,2]
[369771173,1751722271364,-460.0,0.00022191,2]
[369771174,1751722271374,-3916.41,0.00022191,2]
[369771176,1751722271383,-648.75,0.00022191,2]
[369771177,1751722271393,-828.08,0.00022191,2]
[369771178,1751722271402,-670.49,0.00022191,2]
[369771179,1751722271412,-510.5,0.00022191,2]
[369771180,1751722271422,-460.0,0.00022191,2]
[369771181,1751722271431,-1415.35,0.00022191,2]
[369771182,1751722271443,-1243.88,0.00022191,2]
[369771183,1751722271452,-460.0,0.00022191,2]
[369771184,1751722271462,-618.51,0.00022191,2]
[369771185,1751722271472,-3935.55,0.00022191,2]
[369771186,1751722271482,-186.066806,0.00022191,7]
[369771187,1751722271492,-667.64,0.00022191,2]
[369771188,1751722271502,-460.0,0.00022191,2]
[369771189,1751722271511,-186.066806,0.00022191,7]
[369771190,1751722271521,-507.36,0.00022191,2]
[369771191,1751722271531,-460.0,0.00022191,2]
[369771192,1751722271542,-1062.87,0.00022191,2]
[369771193,1751722271555,-3292.21,0.00022191,2]
[369771194,1751722271565,-460.0,0.00022191,2]
[369771195,1751722271574,-513.85,0.00022191,2]
[369771196,1751722271584,-460.0,0.00022191,2]
[369771197,1751722271595,-460.0,0.00022191,2]
[369771198,1751722271604,-476.0,0.00022191,2]
[369771199,1751722271614,-476.0,0.00022213,2]
[369771200,1751722271626,-241.973278,0.00022219,2]
[369771201,1751722271636,-5054.74311718,0.00022235,2]
[369771202,1751722271646,-310.0,0.00022252,2]
[369771203,1751722271656,-476.0,0.00022268,2]
[369771204,1751722271665,-476.0,0.00022283,2]
[369771205,1751722271675,-151.0,0.00022289,5]
[369771206,1751722271686,-21003.25730103,0.000223,2]
[369771207,1751722271696,-655.54338262,0.000223,2]
[369771208,1751722271706,-241.973278,0.00022315,2]
[369771209,1751722271717,-232.17415268,0.00022383,7]
[369771210,1751722271727,-2000.0,0.000224,2]
[369771211,1751722271736,-2000.0,0.000224,2]
[369771212,1751722271746,-150.279053,0.000224,2]
[369771213,1751722271757,-241.973278,0.00022411,2]
[369771214,1751722271767,-168.0,0.00022415,2]
[369771215,1751722271776,-151.0,0.00022416,7]
[369771216,1751722271787,-476.0,0.00022445,2]
[369771217,1751722271797,-3500.0,0.0002246,2]
[369771218,1751722271807,-460.0,0.00022465,2]
[369771219,1751722271818,-460.0,0.00022465,2]
[369771220,1751722271828,-460.0,0.00022465,2]
[369771221,1751722271839,-475.96,0.00022465,2]
[369771222,1751722271849,-460.0,0.00022465,2]
[369771223,1751722271859,-520.9,0.00022465,2]
[369771224,1751722271869,-151.0,0.00022465,7]
[369771225,1751722271879,-151.0,0.00022465,7]
[369771226,1751722271889,-460.0,0.00022465,2]
[369771227,1751722271899,-151.0,0.00022465,2]
[369771228,1751722271909,-460.0,0.00022465,2]
[369771229,1751722271919,-460.0,0.00022465,2]
[369771230,1751722271929,-737.14,0.00022465,2]
[369771231,1751722271939,-460.0,0.00022465,2]
[369771232,1751722271950,-506.75,0.00022465,2]
[369771233,1751722271960,-460.0,0.00022465,2]
[369771234,1751722271970,-230.53,0.00022465,2]
[369771235,1751722271981,-460.0,0.00022465,2]
[369771236,1751722271991,-460.0,0.00022465,2]
[369771237,1751722272003,-460.0,0.00022465,2]
[369771238,1751722272014,-460.0,0.00022465,2]
[369771239,1751722272025,-489.23,0.00022465,2]
[369771240,1751722272035,-1288.64,0.00022465,2]
[369771241,1751722272046,-460.0,0.00022465,2]
[369771242,1751722272056,-460.0,0.00022465,2]
[369771243,1751722272065,-460.0,0.00022465,2]
[369771244,1751722272075,-460.0,0.00022465,2]
[369771245,1751722272085,-460.0,0.00022465,2]
[369771246,1751722272095,-460.0,0.00022465,2]
[369771247,1751722272104,-460.0,0.00022465,2]
[369771248,1751722272115,-900.339985,0.00022465,7]
[369771249,1751722272124,-900.339985,0.00022465,7]
[369771250,1751722272134,-364.15527086,0.00022465,2]
[369771251,1751722272144,-572.67,0.00022465,2]
[369771252,1751722272154,-488.31,0.00022465,2]
[369771253,1751722272164,-620.48,0.00022465,2]
[369771254,1751722272350,-519.51,0.00022465,2]
[369771255,1751722272361,-460.0,0.00022465,2]
[369771256,1751722272371,-460.0,0.00022465,2]
[369771257,1751722272380,-460.0,0.00022465,2]
[369771258,1751722272389,-1011.25,0.00022465,2]
[369771259,1751722272399,-460.0,0.00022465,2]
[369771260,1751722272408,-460.0,0.00022465,2]
[369771261,1751722272417,-460.0,0.00022465,2]
[369771262,1751722272427,-917.61,0.00022465,2]
[369771263,1751722272437,-607.25,0.00022465,2]
[369771264,1751722272448,-614.63,0.00022465,2]
[369771265,1751722272458,-460.0,0.00022465,2]
[369771266,1751722272467,-541.09,0.00022465,2]
[369771267,1751722272477,-460.0,0.00022465,2]
[369771268,1751722272487,-151.0,0.00022465,7]
[369771269,1751722272496,-712.65,0.00022465,2]
[369771270,1751722272508,-460.0,0.00022465,2]
[369771271,1751722272518,-460.0,0.00022465,2]
[369771272,1751722272528,-460.0,0.00022465,2]
[369771273,1751722272539,-527.23,0.00022465,2]
[369771274,1751722272553,-739.98,0.00022465,2]
[369771275,1751722272562,-485.28,0.00022465,2]
[369771276,1751722272571,-2002.42,0.00022465,2]
[369771277,1751722272582,-569.89,0.00022465,2]
[369771278,1751722272592,-1763.37,0.00022465,2]
[369771279,1751722272603,-460.0,0.00022465,2]
[369771280,1751722272613,-3593.24,0.00022465,2]
[369771281,1751722272623,-460.0,0.00022465,2]
[369771282,1751722272634,-460.0,0.00022465,2]
[369771283,1751722272643,-817.0,0.00022465,2]
[369771284,1751722272653,-628.33,0.00022465,2]
[369771285,1751722272663,-976.22,0.00022465,2]
[369771286,1751722272672,-460.0,0.00022465,2]
[369771287,1751722272681,-460.0,0.00022465,2]
[369771288,1751722272690,-460.0,0.00022465,2]
[369771289,1751722272700,-460.0,0.00022465,2]
[369771290,1751722272710,-1540.91,0.00022465,2]
[369771291,1751722272719,-2162.68,0.00022465,2]
[369771292,1751722272729,-532.9,0.00022465,2]
[369771293,1751722272739,-460.0,0.00022465,2]
[369771294,1751722272749,-6246.0,0.00022465,2]
[369771295,1751722272759,-460.0,0.00022465,2]
[369771296,1751722272769,-512.79,0.00022465,2]
[369771297,1751722272779,-460.0,0.00022465,2]
[369771298,1751722272788,-460.0,0.00022465,2]
[369771299,1751722272798,-460.0,0.00022465,2]
[369771300,1751722272807,-8650.73,0.00022465,2]
[369771301,1751722272817,-923.59,0.00022465,2]
[369771302,1751722272827,-460.0,0.00022465,2]
[369771303,1751722272836,-644.54,0.00022465,2]
[369771304,1751722272846,-1436.31,0.00022465,2]
[369771305,1751722272855,-515.17,0.00022465,2]
[369771306,1751722272865,-460.0,0.00022465,2]
[369771307,1751722272875,-460.0,0.00022465,2]
[369771308,1751722272885,-1988.63,0.00022465,2]
[369771309,1751722272895,-2109.23,0.00022465,2]
[369771310,1751722272905,-460.0,0.00022465,2]
[369771311,1751722272915,-460.0,0.00022465,2]
[369771312,1751722272924,-1388.11,0.00022465,2]
[369771314,1751722272934,-460.0,0.00022465,2]
[369771315,1751722272944,-460.0,0.00022465,2]
[369771316,1751722272953,-460.0,0.00022465,2]
[369771317,1751722272962,-463.27,0.00022465,2]
[369771318,1751722272972,-8374.38,0.00022465,2]
[369771319,1751722272981,-2962.19,0.00022465,2]
[369771320,1751722272991,-460.0,0.00022465,2]
[369771321,1751722273000,-1198.59,0.00022465,2]
[369771322,1751722273011,-460.0,0.00022465,2]
[369771323,1751722273021,-776.97,0.00022465,2]
[369771324,1751722273030,-460.0,0.00022465,2]
[369771325,1751722273039,-460.0,0.00022465,2]
[369771326,1751722273049,-460.0,0.00022465,2]
[369771327,1751722273058,-579.55,0.00022465,2]
[369771328,1751722273068,-555.84,0.00022465,2]
[369771329,1751722273078,-2095.61,0.00022465,2]
[369771330,1751722273087,-460.0,0.00022465,2]
[369771331,1751722273096,-582.11474723,0.00022465,2]
[369771332,1751722273106,-460.0,0.00022465,2]
[369771333,1751722273116,-1898.56,0.00022465,2]
[369771334,1751722273125,-460.0,0.00022465,2]
[369771335,1751722273136,-893.21,0.00022465,2]
[369771336,1751722273146,-4007.99,0.00022465,2]
[369771337,1751722273155,-460.0,0.00022465,2]
[369771338,1751722273165,-5012.7,0.00022465,2]
[369771339,1751722273174,-460.0,0.00022465,2]
[369771340,1751722273183,-615.94,0.00022465,2]
[369771341,1751722273193,-951.9,0.00022465,2]
[369771342,1751722273202,-151.0,0.00022465,7]
[369771343,1751722273212,-460.0,0.00022465,2]
[369771344,1751722273221,-460.0,0.00022465,2]
[369771345,1751722273231,-460.0,0.00022465,2]
[369771346,1751722273241,-537.54,0.00022465,2]
[369771347,1751722273251,-6536.21,0.00022465,2]
[369771348,1751722273261,-460.0,0.00022465,2]
[369771349,1751722273270,-151.65461814,0.00022465,2]
[369771350,1751722273279,-1096.58,0.00022465,2]
[369771351,1751722273289,-400.06974513,0.00022465,2]
[369771352,1751722273299,-1375.12,0.00022465,2]
[369771353,1751722273308,-482.57,0.00022465,2]
[369771354,1751722273317,-941.2,0.00022465,2]
[369771355,1751722273327,-541.54,0.00022465,2]
[369771356,1751722273337,-1263.3,0.00022465,2]
[369771357,1751722273346,-1157.82,0.00022465,2]
[369771358,1751722273356,-460.0,0.00022465,2]
[369771359,1751722273366,-460.0,0.00022465,2]
[369771360,1751722273375,-460.0,0.00022465,2]
[369771361,1751722273385,-3019.38,0.00022465,2]
[369771362,1751722273394,-1058.72,0.00022465,2]
[369771363,1751722273404,-460.0,0.00022465,2]
[369771364,1751722273413,-512.71,0.00022465,2]
[369771365,1751722273422,-460.0,0.00022465,2]
[369771366,1751722273432,-2032.43,0.00022465,2]
[369771367,1751722273442,-585.28,0.00022465,2]
[369771368,1751722273451,-2923.56,0.00022465,2]
[369771369,1751722273461,-460.0,0.00022465,2]
[369771370,1751722273470,-652.84,0.00022465,2]
[369771371,1751722273479,-540.09,0.00022465,2]
[369771372,1751722273488,-1505.83,0.00022465,2]
[369771373,1751722273498,-1403.04,0.00022465,2]
[369771374,1751722273508,-460.0,0.00022465,2]
[369771375,1751722273517,-641.04,0.00022465,2]
[369771376,1751722273527,-1468.55,0.00022465,2]
[369771377,1751722273537,-460.0,0.00022465,2]
[369771378,1751722273546,-3916.41,0.00022465,2]
[369771379,1751722273560,-648.75,0.00022465,2]
[369771380,1751722273569,-828.08,0.00022465,2]
[369771381,1751722273578,-670.49,0.00022465,2]
[369771382,1751722273589,-510.5,0.00022465,2]
[369771383,1751722273601,-460.0,0.00022465,2]
[369771384,1751722273611,-1415.35,0.00022465,2]
[369771385,1751722273622,-1243.88,0.00022465,2]
[369771386,1751722273634,-460.0,0.00022465,2]
[369771387,1751722273643,-618.51,0.00022465,2]
[369771388,1751722273653,-3935.55,0.00022465,2]
[369771389,1751722273662,-151.0,0.00022465,7]
[369771390,1751722273671,-151.0,0.00022465,7]
[369771391,1751722273682,-667.64,0.00022465,2]
[369771392,1751722273695,-460.0,0.00022465,2]
[369771393,1751722273706,-507.36,0.00022465,2]
[369771394,1751722273718,-460.0,0.00022465,2]
[369771395,1751722273729,-1062.87,0.00022465,2]
[369771396,1751722273740,-3292.21,0.00022465,2]
[369771397,1751722273749,-461.92473891,0.00022465,2]
[369771398,1751722273759,-513.85,0.00022465,2]
[369771399,1751722273768,-460.0,0.00022465,2]
[369771400,1751722273778,-460.0,0.00022465,2]
[369771401,1751722273788,-206.0,0.0002248,2]
[369771402,1751722273797,-206.0,0.0002248,2]
[369771403,1751722273806,-165.906504,0.00022489,4]
[369771404,1751722273815,-174.845259,0.00022489,4]
[369771405,1751722273825,-207.0,0.0002249,2]
[369771406,1751722273834,-206.0,0.0002249,2]
[369771407,1751722273844,-206.0,0.0002249,2]
[369771408,1751722273854,-151.0,0.0002249,7]
[369771409,1751722273863,-151.0,0.0002249,7]
[369771410,1751722273873,-151.0,0.0002249,7]
[369771411,1751722273882,-123144.81536023,0.0002249,7]
[369771412,1751722274703,-3140.5651793,0.0002249,7]
[369771413,1751722274787,-2137.07303513,0.0002249,7]
[369771723,1751723242144,246.88136,0.00013699,2]
[369771729,1751723398352,503.43,0.00024657,60]
[369771774,1751723432470,-1348.43019503,0.00018589,2]
[369771839,1751723438717,-3699.80968887,0.00018589,2]
[369771842,1751723438727,-557.86096656,0.00019078,2]
[369771845,1751723438737,-585.24887605,0.00019078,2]
[369771848,1751723438747,-336.9,0.00019168,3]
[369771851,1751723438756,-300.0,0.00019176,2]
[369771854,1751723438766,-309.0,0.00019176,2]
[369771857,1751723438776,-500.0,0.00019177,2]
[369771860,1751723438785,-506.71233547,0.00019177,2]
[369771862,1751723438795,-533.78394383,0.00019177,2]
[369771864,1751723438804,-406.5,0.00019177,2]
[369771866,1751723438813,-500.0,0.00019177,2]
[369771868,1751723438823,-410.57694238,0.00019177,2]
[369771871,1751723438834,-500.0,0.00019177,2]
[369771873,1751723438844,-500.0,0.00019177,2]
[369771874,1751723438853,-500.0,0.00019177,2]
[369771877,1751723438863,-500.0,0.00019177,2]
[369771879,1751723438872,-500.0,0.00019177,2]
[369771881,1751723438882,-500.0,0.00019177,2]
[369771883,1751723438892,-500.0,0.00019177,2]
[369771885,1751723438902,-500.0,0.00019177,2]
[369771887,1751723438911,-393.01570945,0.00019177,2]
[369771889,1751723438922,-500.0,0.00019177,2]
[369771891,1751723438932,-425.70074999,0.00019177,2]
[369771893,1751723438942,-500.0,0.00019177,2]
[369771895,1751723438952,-500.0,0.00019177,2]
[369771897,1751723438962,-422.29887072,0.00019177,2]
[369771899,1751723438971,-500.0,0.00019177,2]
[369771901,1751723438981,-500.0,0.00019177,2]
[369771903,1751723438991,-500.0,0.00019177,2]
[369771905,1751723439001,-390.81069993,0.00019177,2]
[369771907,1751723439010,-500.0,0.00019177,2]
[369771909,1751723439020,-500.0,0.00019177,2]
[369771911,1751723439029,-500.0,0.00019177,2]
[369771913,1751723439039,-500.0,0.00019177,2]
[369771915,1751723439048,-500.0,0.00019177,2]
[369771917,1751723439058,-1045.43111903,0.00019177,2]